bitfinex/quotes_ETHUSD_20241018
["timestamp","ask_amount","ask_price","bid_price","bid_amount"]
[1729220117512,3.79393,2635.8,2635.4,0.04722589]
[1729220118301,3.79377,2635.9,2635.5,0.7989]
[1729220118461,3.79377,2635.9,2635.5,0.84586691]
[1729220119205,4.73193697,2636.0,2635.5,0.84586691]
[1729220120008,3.79378,2635.9,2635.5,0.84586691]
[1729220120569,8.52566697,2636.0,2635.5,0.84586691]
[1729220120864,3.79378,2635.9,2635.5,0.84586691]
[1729220122673,5.12849992,2636.0,2635.5,0.84586691]
[1729220123109,8.92223992,2636.0,2635.5,0.84586691]
[1729220124414,5.12849992,2636.0,2635.5,0.84586691]
[1729220124708,3.79382,2635.9,2635.5,0.84586691]
[1729220125008,5.12849992,2636.0,2635.5,0.84586691]
[1729220125874,5.45428764,2635.9,2635.5,0.84586691]
[1729220130307,6.03798756,2636.0,2635.5,4.64019691]
[1729220130784,1.66051764,2635.9,2635.5,4.64019691]
[1729220131985,6.03798756,2636.0,2635.5,4.64019691]
[1729220132385,1.66051764,2635.9,2635.5,4.64019691]
[1729220132581,4.37746992,2636.0,2635.5,4.64019691]
[1729220132582,6.03798756,2636.0,2635.5,4.64019691]
[1729220132801,1.66051764,2635.9,2635.5,4.64019691]
[1729220134139,4.37746992,2636.0,2635.9,3.79377]
[1729220134140,0.39656295,2636.0,2635.9,3.79377]
[1729220134433,0.8209,2636.7,2635.9,1.66051764]
[1729220134614,0.19199428,2636.8,2636.4,4.56147]
[1729220134924,0.19199428,2636.8,2636.5,0.66890163]
[1729220135130,5.64499192,2636.8,2636.5,0.04670287]
[1729220135430,5.45299764,2636.8,2636.5,0.04670287]
[1729220135986,5.45299764,2636.8,2636.4,0.7685]
[1729220136939,5.45299764,2636.8,2636.5,0.04654323]
[1729220137122,3.79248,2636.8,2636.5,0.04654323]
[1729220137581,5.45299764,2636.8,2636.5,0.04654323]
[1729220138040,3.79248,2636.8,2636.5,0.04654323]
[1729220138227,3.79262,2636.7,2636.5,0.04654323]
[1729220138849,5.45299764,2636.8,2636.5,0.04654323]
[1729220139048,9.24556764,2636.8,2636.5,0.04654323]
[1729220139568,3.79248,2636.8,2636.5,0.04654323]
[1729220140062,3.79263,2636.7,2636.5,0.04654323]
[1729220145169,5.45300764,2636.8,2636.5,0.04654323]
[1729220145368,7.98121479,2636.9,2636.5,0.04654323]
[1729220145530,1.66051764,2636.8,2636.5,0.04654323]
[1729220145738,9.24592764,2636.7,2636.5,0.04654323]
[1729220145934,9.24590764,2636.7,2636.5,0.04654323]
[1729220146253,5.45320764,2636.7,2636.5,0.04654323]
[1729220146865,7.58543,2636.7,2636.5,0.04654323]
[1729220147073,3.79269,2636.7,2636.5,0.04654323]
[1729220147952,3.79276,2636.6,2636.5,0.04654323]
[1729220149074,7.58539,2636.7,2636.5,0.04654323]
[1729220149373,3.79276,2636.6,2636.5,0.04654323]
[1729220149746,5.45320764,2636.7,2636.5,0.04654323]
[1729220150079,9.24592764,2636.7,2636.5,0.04654323]
[1729220150279,5.45320764,2636.7,2636.5,0.04654323]
[1729220150575,9.24593764,2636.7,2636.5,0.04654323]
[1729220150746,5.45320764,2636.7,2636.5,0.04654323]
[1729220151283,3.79269,2636.7,2636.5,0.04654323]
[1729220153381,1.66051764,2636.8,2636.5,0.04654323]
[1729220153789,3.79253,2636.8,2636.5,0.04654323]
[1729220154083,5.45304764,2636.8,2636.5,0.04654323]
[1729220157318,4.18882479,2636.9,2636.5,0.04654323]
[1729220157908,5.45305764,2636.8,2636.5,0.04654323]
[1729220158081,3.79254,2636.8,2636.5,0.04654323]
[1729220158463,5.45305764,2636.8,2636.5,0.04654323]
[1729220159011,3.79254,2636.8,2636.5,0.04654323]
[1729220159238,5.84934243,2636.9,2636.5,0.04654323]
[1729220159703,9.64180243,2636.9,2636.5,0.04654323]
[1729220160069,1.66051764,2636.8,2636.5,0.04654323]
[1729220160500,5.45300764,2636.8,2636.5,0.04654323]
[1729220160697,5.45322764,2636.7,2636.5,0.04654323]
[1729220161103,3.79271,2636.7,2636.5,0.04654323]
[1729220161287,5.45322764,2636.7,2636.5,0.04654323]
[1729220161683,3.79271,2636.7,2636.5,0.04654323]
[1729220162002,5.45322764,2636.7,2636.5,0.04654323]
[1729220162310,3.79271,2636.7,2636.5,0.04654323]
[1729220162813,5.45299764,2636.8,2636.5,0.04654323]
[1729220163190,5.45315764,2636.7,2636.5,0.04654323]
[1729220163393,6.25572764,2636.8,2636.5,0.04654323]
[1729220164824,3.79264,2636.7,2636.5,0.04654323]
[1729220165025,5.45315764,2636.7,2636.5,0.04654323]
[1729220165920,3.79264,2636.7,2636.5,0.04654323]
[1729220166413,5.45315764,2636.7,2636.5,0.04654323]
[1729220166779,1.66051764,2636.6,2636.5,0.04654323]
[1729220166980,6.49762588,2636.7,2636.5,0.04654323]
[1729220167214,3.79264,2636.7,2636.2,4.59023]
[1729220167516,5.45328764,2636.6,2636.2,0.7969]
[1729220167719,5.45328764,2636.6,2636.3,0.04574919]
[1729220167926,3.79262,2636.7,2636.3,0.04574919]
[1729220168215,3.79281,2636.6,2636.3,0.04574919]
[1729220168404,5.45313764,2636.7,2636.3,0.04574919]
[1729220169683,3.79262,2636.7,2636.3,0.04574919]
[1729220170123,5.45313764,2636.7,2636.3,0.04574919]
[1729220171207,3.79277,2636.6,2636.3,0.04574919]
[1729220171592,5.45328764,2636.6,2636.3,0.04574919]
[1729220171995,3.79277,2636.6,2636.3,0.04574919]
[1729220172226,5.45356764,2636.4,2636.3,0.04574919]
[1729220172550,5.45356764,2636.4,2636.0,0.7703]
[1729220172910,3.79327,2636.3,2636.0,0.7703]
[1729220173137,3.79327,2636.3,2635.8,1.66051764]
[1729220173138,1.66051764,2636.2,2635.8,0.7703]
[1729220173441,4.57677,2636.2,2636.1,0.04581791]
[1729220173613,4.57677,2636.2,2635.6,4.56441]
[1729220173814,4.57677,2636.2,2636.1,0.04581791]
[1729220173996,4.57677,2636.2,2635.7,3.79404]
[1729220173997,6.23728764,2636.2,2635.7,3.79404]
[1729220174191,4.57677,2636.2,2635.7,3.79404]
[1729220174534,3.79306,2636.4,2635.9,3.79367]
[1729220174735,9.64298975,2636.5,2636.0,0.7703]
[1729220174935,5.84998975,2636.5,2636.0,0.81630687]
[1729220175232,9.64300975,2636.5,2636.0,0.81630687]
[1729220175535,9.64298975,2636.5,2636.0,0.81630687]
[1729220175743,9.64296975,2636.5,2636.0,0.81630687]
[1729220175908,5.84996975,2636.5,2636.0,1.82274432]
[1729220176826,9.24649764,2636.5,2636.0,1.82274432]
[1729220177033,5.45349764,2636.5,2636.0,1.82274432]
[1729220177610,9.24649764,2636.5,2636.0,1.82274432]
[1729220178140,3.79298,2636.5,2636.1,0.8124]
[1729220178304,3.79298,2636.5,2636.1,0.85840242]
[1729220178497,7.58597,2636.5,2636.1,0.85840242]
[1729220178734,3.79298,2636.5,2636.1,0.85840242]
[1729220178941,3.79298,2636.5,2636.1,1.59028917]
[1729220179129,5.45319764,2636.7,2636.1,5.38368917]
[1729220179130,3.79281,2636.6,2636.1,5.38368917]
[1729220179942,5.45332764,2636.6,2636.1,5.38368917]
[1729220180620,1.66051764,2636.6,2636.2,3.79333]
[1729220181135,5.45317764,2636.7,2636.4,0.8186]
[1729220181638,3.79257,2636.8,2636.4,0.8186]
[1729220181639,5.45308764,2636.8,2636.5,0.04598463]
[1729220181936,9.24568764,2636.8,2636.5,0.04598463]
[1729220182113,3.7927,2636.7,2636.5,0.04598463]
[1729220182499,0.8264,2637.0,2636.5,0.04598463]
[1729220182500,4.34241,2636.9,2636.5,0.04598463]
[1729220182699,6.00292764,2636.9,2636.5,0.04598463]
[1729220183013,6.3993464,2636.9,2636.5,0.04598463]
[1729220183197,4.73882876,2636.9,2636.5,0.04598463]
[1729220183404,0.39641876,2636.9,2636.5,0.04598463]
[1729220183741,5.8492764,2636.9,2636.5,0.04598463]
[1729220185235,4.18875876,2636.9,2636.5,0.04598463]
[1729220185436,0.39641876,2636.9,2636.6,4.58935]
[1729220185651,4.34199,2637.2,2636.6,6.24979764]
[1729220185851,6.00250764,2637.2,2636.7,3.83869044]
[1729220186048,3.79208,2637.1,2636.7,0.04608044]
[1729220186248,6.00249764,2637.2,2636.7,0.04608044]
[1729220186460,4.34198,2637.2,2636.7,0.04608044]
[1729220186767,3.79243,2636.9,2636.7,0.04608044]
[1729220186953,5.45298764,2636.8,2636.7,0.04608044]
[1729220187118,3.79247,2636.8,2636.7,0.04608044]
[1729220187546,5.45298764,2636.8,2636.7,0.04608044]
[1729220188249,5.45298764,2636.8,2636.3,0.8286]
[1729220188461,5.45298764,2636.8,2636.7,0.04583112]
[1729220188621,3.79265,2636.7,2636.3,0.8286]
[1729220189939,3.79247,2636.8,2636.3,4.62177]
[1729220190352,3.79233,2636.9,2636.5,0.8286]
[1729220190557,7.58476,2636.9,2636.5,0.8286]
[1729220190739,9.24527764,2636.9,2636.5,0.8286]
[1729220190940,3.79249,2636.8,2636.5,0.8286]
[1729220191647,3.79264,2636.7,2636.5,0.8286]
[1729220195145,3.79264,2636.7,2636.3,0.7814]
[1729220195532,4.62182,2636.9,2636.3,0.7814]
[1729220195874,3.79248,2636.8,2636.3,1.48569138]
[1729220196083,3.79229,2637.0,2636.4,1.66051764]
[1729220196285,3.79229,2637.0,2636.5,0.8194]
[1729220196286,1.66051764,2636.9,2636.5,0.8194]
[1729220196579,5.45306764,2636.8,2636.5,0.8194]
[1729220197081,3.79255,2636.8,2636.5,0.8194]
[1729220198979,3.79235,2636.9,2636.5,0.8194]
[1729220199351,0.59403924,2637.1,2636.6,0.7506]
[1729220199684,6.04669688,2637.1,2636.6,4.54332]
[1729220199843,1.66051764,2637.0,2636.6,4.54332]
[1729220200967,5.45265764,2637.1,2636.6,4.54332]
[1729220201183,5.45265764,2637.1,2636.7,0.454332]
[1729220201342,5.45265764,2637.1,2636.7,0.49999858]
[1729220201879,1.66051764,2637.0,2636.7,0.49999858]
[1729220202379,1.66051764,2637.0,2636.7,0.04566658]
[1729220203143,5.45271764,2637.0,2636.7,0.04566658]
[1729220203564,1.66051764,2636.9,2636.7,0.04566658]
[1729220203877,1.66051764,2636.8,2636.7,0.04566658]
[1729220204078,5.45286764,2636.9,2636.7,0.04566658]
[1729220204304,1.66051764,2636.8,2636.7,0.04566658]
[1729220204653,5.45286764,2636.9,2636.7,0.04566658]
[1729220204854,1.66051764,2636.8,2636.7,0.04566658]
[1729220205380,5.45286764,2636.9,2636.4,4.59972]
[1729220205582,5.45286764,2636.9,2636.7,0.04563668]
[1729220205800,5.45286764,2636.9,2636.4,4.59972]
[1729220206081,5.45286764,2636.9,2636.8,0.04563224]
[1729220206245,5.45286764,2636.9,2636.4,4.59972]
[1729220206445,3.79235,2636.9,2636.8,0.04563224]
[1729220206656,6.28737264,2636.9,2636.4,4.59972]
[1729220206882,1.66051764,2636.9,2636.8,0.04563224]
[1729220207193,3.79213,2637.1,2636.8,0.04563224]
[1729220207486,5.45286764,2636.9,2636.6,0.8128]
[1729220209988,1.66051764,2636.8,2636.6,0.8128]
[1729220210185,1.66051764,2636.8,2636.4,4.54986]
[1729220210382,1.66051764,2636.8,2636.4,0.7569]
[1729220210383,5.45301764,2636.8,2636.4,0.7569]
[1729220210602,1.66051764,2636.8,2636.4,0.7569]
[1729220211212,1.66051764,2636.6,2636.4,0.7569]
[1729220211415,4.56595,2636.9,2636.4,0.7569]
[1729220211416,5.45312764,2636.8,2636.4,0.7569]
[1729220211574,3.79264,2636.7,2636.4,0.7569]
[1729220212088,5.45306764,2636.8,2636.4,0.7569]
[1729220214513,1.66051764,2636.5,2636.1,0.7569]
[1729220214874,8.13532,2636.7,2636.1,4.55029]
[1729220215310,1.66051764,2636.5,2636.1,4.55029]
[1729220215813,1.66051764,2636.6,2636.1,4.55029]
[1729220216015,1.66051764,2636.5,2636.1,4.55029]
[1729220216381,1.66051764,2636.6,2636.2,3.83903378]
[1729220217004,1.66051764,2636.5,2636.2,0.04570378]
[1729220217317,1.66051764,2636.6,2636.2,3.83902378]
[1729220218781,1.66051764,2636.5,2636.2,0.04570378]
[1729220219520,6.82980764,2636.3,2636.2,0.04570378]
[1729220219736,3.03661764,2636.3,2636.2,0.04570378]
[1729220220079,1.66051764,2636.3,2635.8,4.54519]
[1729220220387,3.0,2636.5,2636.0,4.55109]
[1729220220593,3.79285,2636.6,2636.0,4.55109]
[1729220220594,0.55,2636.6,2636.1,4.55099]
[1729220220799,0.55,2636.6,2636.2,3.79326]
[1729220221002,0.55,2636.6,2636.2,0.7576]
[1729220221719,0.55,2636.7,2636.3,4.55072]
[1729220222509,2.21051764,2636.7,2636.3,4.55072]
[1729220222832,6.00315764,2636.7,2636.3,0.7576]
[1729220223329,6.00315764,2636.7,2636.1,4.5898653]
[1729220223330,1.66051764,2636.4,2636.1,0.791]
[1729220223525,1.66051764,2636.5,2636.1,0.791]
[1729220223714,0.55,2636.5,2636.1,0.791]
[1729220224133,6.00349764,2636.5,2636.1,0.791]
[1729220224490,0.55,2636.5,2636.1,0.791]
[1729220224718,0.55,2636.5,2636.1,4.58446]
[1729220225118,0.55,2636.5,2636.1,5.66797729]
[1729220227234,4.34291,2636.5,2636.1,5.66797729]
[1729220227593,4.34291,2636.5,2635.9,1.5677153]
[1729220227594,1.66051764,2636.2,2635.9,1.5677153]
[1729220227795,3.79334,2636.2,2635.9,0.7712]
[1729220228297,3.79334,2636.2,2635.7,4.56523]
[1729220228743,3.79334,2636.2,2635.8,1.66051764]
[1729220228894,0.55,2636.3,2635.8,3.79382]
[1729220229421,0.55,2636.3,2635.9,0.7951]
[1729220229594,4.34319,2636.3,2635.9,0.7951]
[1729220230193,3.79334,2636.2,2635.9,0.7951]
[1729220231529,3.79334,2636.2,2636.0,0.0430651]
[1729220232015,0.55,2636.3,2636.0,0.0430651]
[1729220232332,4.3432,2636.3,2636.0,0.0430651]
[1729220232547,9.24676764,2636.4,2636.0,0.0430651]
[1729220232837,5.45361764,2636.4,2636.0,0.0430651]
[1729220233441,9.24680764,2636.4,2636.0,0.0430651]
[1729220233737,3.7931,2636.4,2636.0,0.0430651]
[1729220234245,3.79271,2636.7,2636.2,0.7867]
[1729220234401,5.45322764,2636.7,2636.2,0.7867]
[1729220234597,5.45322764,2636.7,2636.3,0.04318622]
[1729220234806,3.79279,2636.6,2636.3,0.04318622]
[1729220236802,1.66051764,2636.7,2636.3,0.50551284]
[1729220236803,3.79265,2636.7,2636.3,0.50551284]
[1729220237024,5.45304764,2636.8,2636.4,0.797]
[1729220237240,3.79253,2636.8,2636.4,0.797]
[1729220237440,3.79253,2636.8,2636.5,0.04317733]
[1729220237441,5.45304764,2636.8,2636.5,0.04317733]
[1729220240028,9.24563764,2636.8,2636.5,0.04317733]
[1729220240230,5.45304764,2636.8,2636.5,0.04317733]
[1729220241240,3.79271,2636.7,2636.5,0.04317733]
[1729220241442,5.45304764,2636.8,2636.5,0.04317733]
[1729220241646,10.05262764,2637.0,2636.5,0.04317733]
[1729220241895,8.45286764,2636.9,2636.5,0.04317733]
[1729220242410,5.45300764,2636.8,2636.5,0.04317733]
[1729220243710,1.66051764,2636.7,2636.5,0.04317733]
[1729220243913,3.79249,2636.8,2636.5,0.04317733]
[1729220243914,9.24557764,2636.8,2636.5,0.04317733]
[1729220244235,1.66051764,2636.8,2636.5,0.04317733]
[1729220244647,5.45307764,2636.8,2636.5,0.04317733]
[1729220245512,3.79256,2636.8,2636.5,0.04317733]
[1729220245718,5.45307764,2636.8,2636.5,0.04317733]
[1729220249152,3.79228,2637.0,2636.5,0.04317733]
[1729220249379,1.66051764,2636.7,2636.5,0.04317733]
[1729220249661,9.24563764,2636.8,2636.5,0.04317733]
[1729220249846,5.45306764,2636.8,2636.5,0.04317733]
[1729220250247,1.66051764,2636.6,2636.5,0.04317733]
[1729220251562,5.45327764,2636.6,2636.5,0.04317733]
[1729220251758,3.79276,2636.6,2636.5,0.04317733]
[1729220252474,5.45327764,2636.6,2636.5,0.04216328]
[1729220252630,6.79627764,2636.6,2636.5,0.04216328]
[1729220252837,8.02132817,2636.6,2636.1,0.8287]
[1729220253033,5.45357764,2636.4,2636.1,0.8287]
[1729220253251,9.24674764,2636.4,2636.1,0.8287]
[1729220253473,5.45357764,2636.4,2636.1,0.8287]
[1729220254435,3.7932,2636.3,2636.1,0.8287]
[1729220254838,3.7932,2636.3,2636.2,0.04130348]
[1729220255261,6.3783954,2636.3,2636.2,0.04130348]
[1729220255461,4.71787776,2636.3,2636.2,0.04130348]
[1729220255646,4.71787776,2636.3,2635.8,0.85686958]
[1729220255833,3.7932,2636.3,2636.2,0.04143297]
[1729220256042,5.45357764,2636.4,2635.8,0.781]
[1729220256043,3.79334,2636.2,2635.8,0.781]
[1729220259084,3.79334,2636.2,2635.8,0.8568696]
[1729220259646,3.79325,2636.3,2635.9,0.8253]
[1729220259864,4.71794176,2636.3,2635.9,0.8253]
[1729220260079,3.79325,2636.3,2636.0,0.04160124]
[1729220262181,3.79315,2636.4,2636.0,0.04160124]
[1729220262980,5.45392764,2636.2,2636.0,0.04160124]
[1729220263204,3.79315,2636.4,2636.0,0.04160124]
[1729220263205,3.79319,2636.3,2636.0,0.04160124]
[1729220264043,3.79315,2636.4,2636.0,0.04160124]
[1729220264345,3.79335,2636.2,2636.0,0.04160124]
[1729220264551,3.79315,2636.4,2636.0,0.04160124]
[1729220264751,7.5863,2636.4,2636.1,0.7769]
[1729220265058,7.5863,2636.4,2636.2,0.04159234]
[1729220265264,3.79319,2636.3,2636.2,0.04159234]
[1729220269281,3.79334,2636.2,2635.9,0.7664]
[1729220271657,5.45385764,2636.2,2635.9,0.7664]
[1729220271848,2.56795053,2636.6,2635.7,0.7585]
[1729220271849,3.79361,2636.1,2635.7,0.7585]
[1729220272852,3.79362,2636.0,2635.7,0.7585]
[1729220274898,5.45428764,2635.9,2635.5,0.8263]
[1729220275096,1.66051764,2635.6,2635.4,0.7965153]
[1729220275251,0.7619,2635.9,2635.3,0.8263]
[1729220275252,5.45463764,2635.7,2635.3,0.8263]
[1729220275450,1.66051764,2635.6,2635.3,0.8263]
[1729220275651,3.79435,2635.5,2635.1,0.7761]
[1729220275888,1.66051764,2635.4,2635.1,0.7761]
[1729220276199,3.79435,2635.5,2635.1,0.7761]
[1729220276200,5.45486764,2635.5,2635.1,0.7761]
[1729220276361,5.45486764,2635.5,2635.2,0.04165678]
[1729220276780,3.79449,2635.4,2635.2,0.04165678]
[1729220276988,5.45514764,2635.3,2635.2,0.04165678]
[1729220277198,5.45514764,2635.3,2634.9,0.8284]
[1729220277358,3.79485,2635.2,2634.9,0.8284]
[1729220277557,5.45536764,2635.2,2634.9,0.8284]
[1729220278068,4.34465,2635.3,2634.9,0.8284]
[1729220278377,6.00516764,2635.3,2634.9,0.8284]
[1729220279419,3.79478,2635.2,2634.9,0.8284]
[1729220280291,4.34466,2635.3,2634.9,0.8284]
[1729220281580,3.79477,2635.2,2634.9,0.8284]
[1729220282365,4.34472,2635.3,2634.9,0.8284]
[1729220282569,6.00523764,2635.3,2634.9,0.8284]
[1729220284175,0.55,2635.3,2634.9,0.8284]
[1729220284383,4.34466,2635.3,2634.9,0.8284]
[1729220286604,3.79457,2635.4,2634.9,6.28398764]
[1729220286805,3.79457,2635.4,2635.0,0.07589306]
[1729220287011,1.66051764,2635.5,2635.0,3.87094306]
[1729220287321,3.79438,2635.5,2635.0,3.87094306]
[1729220287877,6.24330764,2635.6,2635.0,3.79505]
[1729220288083,6.24330764,2635.6,2635.0,4.86579364]
[1729220288312,10.03764764,2635.6,2635.0,4.86579364]
[1729220290025,6.24330764,2635.6,2635.0,4.86579364]
[1729220290204,10.03759764,2635.6,2635.0,4.86579364]
[1729220290377,8.2824,2635.9,2635.2,0.7852]
[1729220290600,7.45,2635.9,2635.5,6.24004764]
[1729220290924,7.45,2635.9,2635.6,1.00344476]
[1729220291091,7.45,2635.9,2635.7,3.79404]
[1729220291292,7.45,2635.9,2635.8,0.7804]
[1729220291646,3.79348,2636.1,2635.8,0.82283225]
[1729220292186,3.79366,2636.0,2635.8,0.82283225]
[1729220292430,1.66051764,2635.9,2635.8,0.04243225]
[1729220292594,2.21051764,2635.9,2635.2,0.7646]
[1729220292782,5.45479764,2635.6,2635.2,0.7646]
[1729220292983,3.79428,2635.6,2635.2,0.7646]
[1729220293581,5.45479764,2635.6,2635.2,0.7646]
[1729220293786,3.79428,2635.6,2635.2,0.7646]
[1729220294097,5.45479764,2635.6,2635.2,0.7646]
[1729220297231,9.24907764,2635.6,2635.2,0.7646]
[1729220297408,5.45479764,2635.6,2635.2,0.7646]
[1729220297931,9.43665789,2635.6,2635.2,0.7646]
[1729220298333,3.79443,2635.5,2635.2,0.7646]
[1729220298536,5.64237789,2635.6,2635.2,0.7646]
[1729220299222,3.98186025,2635.6,2635.2,0.7646]
[1729220300446,3.79435,2635.5,2635.2,0.7646]
[1729220301038,6.42627789,2635.6,2635.2,0.7646]
[1729220301212,4.76576025,2635.6,2635.2,0.7646]
[1729220301412,3.98186025,2635.6,2635.2,0.7646]
[1729220302538,5.64237789,2635.6,2635.2,0.7646]
[1729220302947,3.98186025,2635.6,2635.2,0.7646]
[1729220303805,3.79428,2635.6,2635.2,0.7646]
[1729220306444,3.79428,2635.6,2635.3,0.04212064]
[1729220306757,3.79428,2635.6,2635.2,0.7646]
[1729220307060,3.79428,2635.6,2635.3,0.04212064]
[1729220307230,3.79428,2635.6,2635.2,0.7646]
[1729220307427,3.79428,2635.6,2635.3,0.04212064]
[1729220307638,4.81652235,2635.6,2635.2,0.7646]
[1729220307841,4.81652235,2635.6,2635.3,0.04212064]
[1729220308166,4.81652235,2635.6,2635.2,0.7646]
[1729220308454,3.79428,2635.6,2635.3,0.04212064]
[1729220308759,3.79428,2635.6,2635.2,0.7646]
[1729220308964,3.79428,2635.6,2635.4,0.04211619]
[1729220309121,3.79428,2635.6,2635.3,0.04212064]
[1729220309321,3.79428,2635.6,2635.2,0.7646]
[1729220309322,3.79428,2635.6,2635.5,0.04211174]
[1729220309524,4.81652235,2635.6,2635.4,0.04211619]
[1729220309835,4.81652235,2635.6,2635.2,0.7646]
[1729220309836,4.81652235,2635.6,2635.5,0.04211174]
[1729220310018,4.81652235,2635.6,2635.2,0.7646]
[1729220310224,3.79428,2635.6,2635.2,0.7646]
[1729220310522,3.79428,2635.6,2635.3,0.04212064]
[1729220311027,3.79428,2635.6,2635.4,0.04211619]
[1729220311226,3.79428,2635.6,2635.2,0.7646]
[1729220311460,3.79428,2635.6,2635.3,0.04212064]
[1729220311759,3.79411,2635.7,2635.2,4.5593]
[1729220311979,3.79411,2635.7,2635.4,0.04211619]
[1729220312267,6.23840764,2635.8,2635.5,0.04211174]
[1729220312268,4.57792,2635.8,2635.5,0.04211174]
[1729220312450,6.23843764,2635.8,2635.2,4.63518902]
[1729220312645,6.23843764,2635.8,2635.3,0.04212064]
[1729220312853,6.23843764,2635.8,2635.2,4.5593]
[1729220313031,6.23843764,2635.8,2635.3,0.04212064]
[1729220313250,6.23843764,2635.8,2635.2,4.5593]
[1729220313441,6.23843764,2635.8,2635.3,0.04212064]
[1729220313666,6.23843764,2635.8,2635.2,8.354]
[1729220313964,6.23843764,2635.8,2635.3,0.04212064]
[1729220314376,6.23843764,2635.8,2635.2,4.5593]
[1729220314529,6.23843764,2635.8,2635.4,0.04211619]
[1729220314726,6.23843764,2635.8,2635.3,0.04212064]
[1729220314959,6.23843764,2635.8,2635.5,0.04211174]
[1729220315160,6.23843764,2635.8,2635.4,0.04211619]
[1729220315379,3.79409,2635.7,2635.6,0.04210729]
[1729220315826,3.79409,2635.7,2635.2,4.5593]
[1729220316364,3.79409,2635.7,2635.3,0.04212064]
[1729220316858,3.79409,2635.7,2635.2,4.5593]
[1729220317068,3.79409,2635.7,2635.3,0.04212064]
[1729220317269,3.79409,2635.7,2635.2,4.5593]
[1729220317477,3.79409,2635.7,2635.3,0.04211564]
[1729220317630,3.79409,2635.7,2635.2,4.5593]
[1729220317834,3.79409,2635.7,2635.3,0.04211564]
[1729220318177,3.79409,2635.7,2635.2,4.5593]
[1729220318347,3.79409,2635.7,2635.4,0.04211119]
[1729220318532,3.79409,2635.7,2635.3,0.04211564]
[1729220318734,3.79409,2635.7,2635.5,0.04210674]
[1729220318936,3.79409,2635.7,2635.4,0.04211119]
[1729220319161,3.79409,2635.7,2635.6,0.04210229]
[1729220319357,4.85232776,2635.7,2635.5,0.04210674]
[1729220319671,4.85232776,2635.7,2635.6,0.04210229]
[1729220319867,4.85232776,2635.7,2635.2,4.5593]
[1729220320071,3.79409,2635.7,2635.3,0.04211564]
[1729220320367,3.79409,2635.7,2635.2,4.5593]
[1729220320573,3.79409,2635.7,2635.4,0.04211119]
[1729220320875,3.79409,2635.7,2635.5,0.04210674]
[1729220321033,3.79409,2635.7,2635.2,4.5593]
[1729220321370,3.79409,2635.7,2635.3,0.04211564]
[1729220321736,3.79409,2635.7,2635.2,4.55929]
[1729220321935,3.79409,2635.7,2635.4,0.04211119]
[1729220322130,3.79409,2635.7,2635.3,0.04211564]
[1729220322473,3.79409,2635.7,2635.5,0.04210674]
[1729220322643,3.79409,2635.7,2635.6,0.04210229]
[1729220322846,3.79409,2635.7,2635.2,4.55929]
[1729220323059,3.79409,2635.7,2635.3,0.04211564]
[1729220323273,3.79409,2635.7,2635.2,5.38039959]
[1729220323474,3.79409,2635.7,2635.3,0.04211564]
[1729220323644,3.79409,2635.7,2635.2,5.38037959]
[1729220324172,3.79409,2635.7,2635.3,0.04211564]
[1729220324363,5.45460764,2635.7,2635.3,0.04211564]
[1729220324595,0.62385076,2635.6,2635.2,0.7646]
[1729220324780,5.45460764,2635.7,2635.4,0.04211119]
[1729220324974,5.45460764,2635.7,2635.3,0.04071989]
[1729220325272,5.45460764,2635.7,2635.4,0.04071544]
[1729220325466,3.79409,2635.7,2635.2,4.55928]
[1729220325663,3.79409,2635.7,2635.3,0.04071989]
[1729220325879,3.79409,2635.7,2635.2,4.55928]
[1729220326080,3.79409,2635.7,2635.3,0.04071989]
[1729220326283,3.79409,2635.7,2635.2,4.55928]
[1729220326466,3.79409,2635.7,2635.3,0.04090426]
[1729220326669,3.79409,2635.7,2635.3,0.07588503]
[1729220326897,3.79409,2635.7,2635.4,0.04089981]
[1729220327583,3.79409,2635.7,2635.2,4.55928]
[1729220327787,3.79409,2635.7,2635.5,0.04089536]
[1729220327999,3.79409,2635.7,2635.2,4.55928]
[1729220328203,3.79409,2635.7,2635.6,0.04089091]
[1729220328405,3.79409,2635.7,2635.2,4.55928]
[1729220328406,4.85232576,2635.7,2635.2,4.55928]
[1729220328702,3.79409,2635.7,2635.2,4.55928]
[1729220328879,3.79409,2635.7,2635.3,0.04090426]
[1729220329079,3.79409,2635.7,2635.2,8.35398]
[1729220329402,3.79409,2635.7,2635.3,0.04090426]
[1729220329808,3.79409,2635.7,2635.2,4.55928]
[1729220330101,3.79409,2635.7,2635.3,0.04090426]
[1729220330308,3.79409,2635.7,2635.2,5.3557953]
[1729220330471,3.79409,2635.7,2635.4,0.04089981]
[1729220330671,3.79409,2635.7,2635.2,5.3557953]
[1729220330873,3.79409,2635.7,2635.3,0.04090426]
[1729220331202,3.79409,2635.7,2635.2,9.1504953]
[1729220331501,3.79409,2635.7,2635.3,0.04090426]
[1729220331807,3.79409,2635.7,2635.2,9.1504853]
[1729220332129,3.79409,2635.7,2635.3,3.91139928]
[1729220332795,3.79409,2635.7,2635.3,3.83551426]
[1729220334608,3.79409,2635.7,2635.3,3.91139927]
[1729220335026,3.79409,2635.7,2635.3,3.83551426]
[1729220335410,3.79409,2635.7,2635.3,4.63202956]
[1729220335926,3.79409,2635.7,2635.3,3.83551426]
[1729220336231,3.98512833,2636.2,2635.4,2.41601764]
[1729220336232,0.99775833,2636.2,2635.4,2.41601764]
[1729220336529,3.79327,2636.3,2635.8,3.79383]
[1729220336946,4.59913,2636.4,2635.7,1.62788648]
[1729220336947,1.66051764,2636.0,2635.9,0.04084268]
[1729220337097,5.9995234,2636.0,2635.9,0.04084268]
[1729220337295,3.79384,2635.9,2635.4,0.7965153]
[1729220337593,3.79384,2635.9,2635.5,0.04079071]
[1729220338449,10.5992734,2636.0,2635.5,0.04079071]
[1729220338654,3.79377,2635.9,2635.5,0.04079071]
[1729220340941,10.5992834,2636.0,2635.5,0.04079071]
[1729220341526,6.8055234,2636.0,2635.5,0.04079071]
[1729220341847,3.79378,2635.9,2635.5,0.04079071]
[1729220344526,10.5992834,2636.0,2635.5,0.04079071]
[1729220344733,5.14500576,2636.0,2635.5,0.83730601]
[1729220344905,5.14500576,2636.0,2635.5,4.63163601]
[1729220345102,5.14500576,2636.0,2635.5,3.83512071]
[1729220345603,8.93871576,2636.0,2635.5,0.04079071]
[1729220345816,5.14500576,2636.0,2635.5,0.04079071]
[1729220346229,3.79379,2635.9,2635.5,0.04079071]